bitfinex/quotes_ETHUSD_20251010
["timestamp","ask_amount","ask_price","bid_price","bid_amount"]
[1760113951786,1e-08,4131.9,4131.8,25.05125267]
[1760113952838,1e-08,4131.9,4131.8,19.31425267]
[1760113953056,1e-08,4131.9,4131.8,21.33125267]
[1760113953287,1e-08,4131.9,4131.8,14.974]
[1760113953437,1e-08,4131.9,4131.8,20.237]
[1760113953837,1e-08,4131.9,4131.8,24.16648797]
[1760113954067,1e-08,4131.9,4131.8,24.28728797]
[1760113954950,0.001,4132.3,4132.2,2.42001839]
[1760113955159,0.001,4132.3,4132.2,21.87007712]
[1760113955360,0.001,4132.3,4132.2,24.38487712]
[1760113955587,0.001,4132.3,4132.2,26.75519131]
[1760113956376,0.001,4132.3,4132.2,11.02413258]
[1760113956580,0.001,4132.3,4132.2,27.54013258]
[1760113957078,0.001,4132.3,4132.2,28.17373258]
[1760113957284,0.001,4132.3,4132.2,28.27373258]
[1760113957780,0.001,4132.3,4132.2,27.64013258]
[1760113958009,0.001,4132.3,4132.2,28.27373258]
[1760113958506,1e-08,4132.8,4132.7,2.4197256]
[1760113958706,1e-08,4132.8,4132.7,8.73467839]
[1760113958910,1e-08,4132.8,4132.7,9.20867839]
[1760113959124,1e-08,4132.8,4132.7,9.84227839]
[1760113959418,1e-08,4132.8,4132.7,24.34227839]
[1760113959624,0.001,4134.1,4134.0,2.41896468]
[1760113959925,0.001,4134.1,4134.0,8.15396468]
[1760113960221,0.001,4134.1,4134.0,8.62796468]
[1760113960424,0.001,4134.1,4134.0,8.15396468]
[1760113960582,0.001,4134.1,4134.0,23.12796468]
[1760113960780,0.001,4134.1,4134.0,22.65396468]
[1760113960987,0.001,4134.1,4134.0,16.91896468]
[1760113961191,0.001,4134.1,4134.0,18.219]
[1760113961494,0.001,4134.1,4134.0,21.11196468]
[1760113961889,0.001,4134.1,4134.0,20.63796468]
[1760113962429,0.001,4134.1,4134.0,21.11196468]
[1760113962884,0.001,4134.1,4134.0,23.39416026]
[1760113963997,0.001,4134.1,4134.0,25.40916026]
[1760113964329,0.001,4134.1,4134.0,2.41896468]
[1760113964500,0.001,4134.1,4134.0,5.734]
[1760113964699,0.001,4134.1,4134.0,20.63696468]
[1760113965328,0.001,4134.1,4134.0,21.11096468]
[1760113967341,0.001,4134.1,4134.0,17.39296468]
[1760113967625,0.001,4134.1,4134.0,21.11096468]
[1760113968489,0.001,4134.1,4134.0,21.23176468]
[1760113968833,0.001,4134.1,4134.0,23.24776468]
[1760113969000,0.001,4134.1,4134.0,19.52976468]
[1760113969202,0.001,4134.1,4134.0,23.24776468]
[1760113969403,0.001,4134.1,4134.0,22.77376468]
[1760113969629,0.001,4134.1,4134.0,20.75776468]
[1760113969937,0.001,4134.1,4134.0,18.218]
[1760113970087,0.51662768,4134.1,4134.0,20.63696468]
[1760113970397,0.001,4134.1,4134.0,23.43507887]
[1760113970584,0.001,4134.1,4134.0,23.55587887]
[1760113971885,0.001,4134.1,4134.0,17.41891419]
[1760113972089,1.92,4134.0,4132.7,2.016]
[1760113972391,0.6462737,4133.2,4132.8,2.008]
[1760113972608,0.51562768,4133.1,4132.9,4.42755971]
[1760113972794,0.6462737,4133.2,4132.9,4.42755971]
[1760113972795,0.51562768,4133.0,4132.9,4.43558479]
[1760113973134,0.51989964,4133.8,4133.1,3.05309142]
[1760113973293,0.51989964,4134.0,4133.7,2.41914023]
[1760113973492,0.001,4134.1,4134.0,2.41896468]
[1760113973690,0.52114959,4134.1,4134.0,6.13596468]
[1760113973908,0.001,4134.1,4134.0,6.56376468]
[1760113974190,0.001,4134.1,4134.0,7.77389365]
[1760113975325,0.001,4134.1,4134.0,3.62909365]
[1760113975625,0.001,4134.1,4134.0,7.77389365]
[1760113976125,0.001,4134.1,4134.0,6.56376468]
[1760113976427,0.52135236,4134.1,4133.8,14.5]
[1760113976630,0.52035236,4134.0,4133.5,2.016]
[1760113976794,0.52035236,4133.9,4133.6,3.717]
[1760113976995,0.52035236,4133.8,4133.6,6.13618505]
[1760113977195,0.52035236,4133.7,4133.6,6.13618505]
[1760113977494,0.52035236,4134.0,4133.6,3.717]
[1760113977700,0.52035236,4133.9,4133.8,2.41908171]
[1760113977898,0.52035236,4133.9,4133.8,6.13608171]
[1760113978229,0.52035236,4134.0,4133.9,2.41902319]
[1760113978396,0.001,4134.1,4134.0,2.41896468]
[1760113978598,0.001,4134.1,4134.0,2.84676468]
[1760113978829,0.001,4134.1,4134.0,3.97083311]
[1760113979049,0.001,4134.1,4134.0,3.94664347]
[1760113979624,0.001,4134.1,4133.5,14.5]
[1760113979873,0.001,4134.1,4134.0,2.41896468]
[1760113980060,0.001,4134.1,4134.0,6.13596468]
[1760113980244,0.001,4134.1,4134.0,6.56376468]
[1760113980439,0.001,4134.1,4134.0,6.13596468]
[1760113980748,0.001,4134.1,4134.0,6.56376468]
[1760113980926,0.001,4134.1,4134.0,7.46204853]
[1760113982076,0.001,4134.1,4134.0,7.58284853]
[1760113982240,0.001,4134.1,4134.0,22.08284853]
[1760113983828,0.001,4134.1,4134.0,21.18456468]
[1760113985426,0.001,4134.1,4134.0,17.03976468]
[1760113985745,0.001,4134.1,4134.0,22.77176468]
[1760113986052,0.001,4134.1,4134.0,23.19956468]
[1760113987474,0.001,4134.1,4134.0,3.716]
[1760113987839,0.001,4134.1,4134.0,6.56276468]
[1760113988363,0.001,4134.1,4134.0,6.13496468]
[1760113988673,0.001,4134.1,4134.0,6.56276468]
[1760113988837,0.001,4134.1,4134.0,8.91094892]
[1760113989042,0.001,4134.1,4134.0,6.56276468]
[1760113989466,0.001,4134.6,4134.5,2.41867214]
[1760113989637,0.001,4135.0,4134.9,2.41843817]
[1760113989837,0.001,4135.0,4134.9,6.13443817]
[1760113990063,0.001,4135.0,4134.9,2.41843817]
[1760113990251,0.001,4135.0,4134.9,8.57723817]
[1760113990450,0.001,4135.0,4134.9,5.731]
[1760113990876,0.001,4135.0,4133.9,0.2203]
[1760113991081,0.001,4135.0,4134.0,6.1588]
[1760113991376,0.001,4135.0,4134.0,0.4278]
[1760113991575,0.62025236,4134.9,4134.1,2.015]
[1760113991892,0.62025236,4134.9,4133.2,0.6481]
[1760113991893,0.6462737,4134.5,4133.2,0.2203]
[1760113992088,3.07123271,4134.2,4133.3,3.25336889]
[1760113992375,3.07123271,4134.2,4133.4,0.02419315]
[1760113992376,0.52035236,4134.1,4133.4,0.02419315]
[1760113992680,0.52035236,4134.1,4133.5,3.716]
[1760113993262,0.52035236,4134.0,4133.5,3.716]
[1760113993470,0.0999,4133.9,4133.6,3.716]
[1760113993645,1.17268208,4134.3,4133.6,3.716]
[1760113993845,0.40543923,4134.3,4133.6,3.716]
[1760113994186,0.92579159,4134.3,4133.9,2.41898432]
[1760113994357,0.92579159,4134.3,4133.6,6.13514356]
[1760113994358,1.17268208,4134.6,4134.0,3.716]
[1760113994592,3.09268208,4134.7,4134.0,3.716]
[1760113994789,2.93897565,4134.6,4134.0,3.716]
[1760113994991,1.17268208,4134.6,4134.0,3.716]
[1760113995196,0.56379976,4134.5,4134.0,3.716]
[1760113995382,2.41890303,4134.2,4133.4,0.4278]
[1760113995609,0.66369976,4134.5,4133.5,3.716]
[1760113995816,1.29943469,4134.8,4133.6,4.1438]
[1760113996121,0.52135236,4135.0,4133.8,0.6336]
[1760113996296,0.001,4135.0,4134.9,2.41843817]
[1760113996493,0.001,4135.0,4134.9,6.13443817]
[1760113996796,0.001,4135.0,4134.9,6.60943817]
[1760113997409,0.001,4135.0,4134.9,8.65023817]
[1760113997610,0.001,4135.0,4134.9,9.95861365]
[1760113998828,0.001,4135.0,4134.9,10.59221365]
[1760113999150,0.001,4135.0,4134.9,7.41937548]
[1760113999303,0.86763402,4137.0,4134.9,7.57797548]
[1760113999508,3.13286282,4139.4,4134.9,7.57797548]
[1760113999509,3.00633833,4139.1,4137.3,0.6336]
[1760113999840,3.00633833,4139.1,4136.9,15.38061125]
[1760113999841,0.003,4139.7,4138.6,0.6336]
[1760114000048,0.003,4139.7,4139.0,2.41602462]
[1760114000214,0.003,4139.7,4139.1,3.717]
[1760114000417,0.003,4139.7,4139.2,3.717]
[1760114000629,0.003,4139.7,4139.3,0.02415867]
[1760114000850,0.003,4139.7,4139.4,2.41575218]
[1760114001018,0.003,4139.7,4139.5,3.717]
[1760114001356,0.003,4139.7,4139.6,3.717]
[1760114001559,0.003,4139.7,4139.6,6.13269233]
[1760114001746,0.003,4139.7,4139.6,3.717]
[1760114002114,0.003,4139.7,4138.8,0.48662785]
[1760114002343,0.003,4139.7,4138.5,1.92]
[1760114002756,0.003,4139.7,4138.7,2.4162088]
[1760114003267,0.003,4139.7,4138.6,5.73]
[1760114003450,0.003,4139.7,4138.7,3.73916217]
[1760114003617,0.003,4139.7,4138.7,1.94416217]
[1760114003942,0.003,4139.7,4139.6,2.41569233]
[1760114004128,0.003,4139.7,4139.6,10.06669233]
[1760114004318,0.003,4139.7,4139.6,8.05169233]
[1760114004522,0.003,4139.7,4139.6,11.11243958]
[1760114004857,0.003,4139.7,4138.7,8.71220178]
[1760114004858,0.003,4139.7,4138.6,2.685]
[1760114005566,0.003,4139.7,4139.6,8.77829233]
[1760114005786,0.003,4139.7,4139.6,10.69829233]
[1760114005970,0.003,4139.7,4139.6,13.06860652]
[1760114006172,1e-08,4139.7,4139.6,13.06860652]
[1760114006371,0.86170157,4140.7,4139.7,1.92]
[1760114006575,0.86170157,4140.7,4140.0,0.6336]
[1760114006771,0.86170157,4140.7,4140.2,1.92]
[1760114006998,0.86170157,4140.7,4139.8,2.014]
[1760114006999,0.86170157,4140.7,4137.4,3.71015076]
[1760114007192,0.86170157,4140.7,4140.0,2.41541227]
[1760114007486,0.86170157,4140.7,4140.5,2.41516429]
[1760114007786,0.86170157,4140.7,4140.6,6.13610892]
[1760114008949,0.86170157,4140.7,4140.6,6.25610892]
[1760114009189,1e-08,4140.7,4140.6,10.18810892]
[1760114009392,1e-08,4140.7,4140.6,26.47525029]
[1760114009694,1e-08,4140.7,4140.1,15.14681125]
[1760114009847,0.2271,4143.7,4141.9,15.14681125]
[1760114010053,0.2271,4143.7,4142.0,5.90814292]
[1760114010054,0.4456,4143.6,4142.0,5.90814292]
[1760114010249,0.4456,4143.6,4142.1,0.02414234]
[1760114010549,0.4456,4143.6,4142.0,5.884]
[1760114010774,0.4456,4143.6,4142.1,2.34451405]
[1760114010960,0.4456,4143.6,4142.0,5.884]
[1760114011280,0.2271,4143.7,4142.1,1.94414234]
[1760114011597,0.4456,4144.1,4143.2,2.41353769]
[1760114011760,0.4456,4144.1,4143.3,3.876]
[1760114011961,0.2271,4144.4,4143.4,3.875]
[1760114013391,0.4456,4144.6,4143.5,0.02413418]
[1760114013591,0.2271,4146.0,4143.9,2.41318095]
[1760114013592,2.08508978,4145.3,4143.9,2.41318095]
[1760114013893,0.8261,4146.0,4144.0,5.90713127]
[1760114013894,0.2271,4145.4,4144.0,5.90713127]
[1760114014220,0.2271,4145.4,4142.8,3.869]
[1760114014221,15.14681125,4145.1,4142.8,3.869]
[1760114014419,4.33283628,4144.5,4141.4,0.2195]
[1760114014718,2.5536,4143.9,4141.6,2.013]
[1760114015018,0.6336,4143.3,4141.7,2.013]
[1760114015218,2.41410694,4142.4,4140.5,0.475]
[1760114015381,4.3340002,4142.6,4140.6,3.982]
[1760114015588,1.92,4143.0,4140.8,2.41497319]
[1760114015813,15.199043,4143.1,4140.6,3.982]
[1760114015814,1.92,4142.8,4140.6,3.982]
[1760114015993,0.66923443,4142.7,4140.7,0.49291668]
[1760114016188,1.92,4143.1,4140.8,0.475]
[1760114016476,0.6336,4143.3,4140.8,0.475]
[1760114016477,2.4140027,4142.5,4140.9,5.88]
[1760114016681,2.41382639,4142.8,4140.9,2.41493395]
[1760114016880,2.86127655,4147.4,4140.8,0.475]
[1760114016881,4.370181,4142.9,4141.1,2.41481731]
[1760114017124,2.41371507,4143.0,4141.4,2.4145897]
[1760114017303,0.43337151,4142.9,4141.6,2.41448471]
[1760114017510,2.41374022,4143.0,4141.7,2.43860441]
[1760114017680,2.41388665,4142.7,4141.5,3.868]
[1760114018013,2.5536,4143.0,4141.4,3.865]
[1760114018224,2.41388466,4142.7,4141.3,3.864]
[1760114018425,1.92,4142.5,4141.4,0.02414642]
[1760114018584,0.2271,4141.5,4139.6,1.51468113]
[1760114018783,0.2271,4141.5,4139.7,1.415]
[1760114018983,0.2271,4141.5,4139.8,2.012]
[1760114019221,2.41511714,4140.6,4139.7,2.012]
[1760114019555,2.41540059,4140.1,4138.2,1.21256966]
[1760114019677,3.52067,4140.2,4138.2,0.72641599]
[1760114019885,0.6336,4140.0,4137.9,3.863]
[1760114020121,0.6336,4140.0,4137.3,0.47515779]
[1760114020122,2.41591992,4139.3,4137.3,0.47515779]
[1760114020293,2.41622008,4138.7,4137.4,4.337]
[1760114020500,0.6336,4139.5,4137.3,0.002]
[1760114020832,2.41591924,4139.3,4137.4,0.149]
[1760114021137,1.92,4138.9,4137.3,0.002]
[1760114021283,1.92,4139.1,4137.3,0.002]
[1760114021483,0.50615192,4139.2,4132.9,0.85810253]
[1760114021484,0.002,4137.1,4132.9,0.85810253]
[1760114021722,0.002,4137.1,4131.0,3.04491169]
[1760114021723,2.41738583,4136.7,4133.8,15.14681125]
[1760114021922,0.24173858,4136.6,4134.4,15.14681125]
[1760114022094,0.24173858,4136.6,4133.9,7.88587136]
[1760114022095,0.2271,4137.9,4135.1,15.14681125]
[1760114022301,0.2271,4137.9,4135.2,6.37218262]
[1760114022505,3.487995,4137.8,4135.3,1.1086]
[1760114022792,10.252296,4137.3,4135.4,5.872]
[1760114023003,2.41735651,4136.8,4135.5,3.86]
[1760114023204,1.45892144,4137.2,4135.6,3.88418028]
[1760114023405,1.92,4137.8,4135.7,0.6336]
[1760114023590,2.4167526,4137.8,4135.9,2.41779836]
[1760114023792,1.92,4137.7,4135.7,0.6336]
[1760114023993,0.6336,4138.7,4135.7,0.6336]
[1760114023994,0.50615192,4139.2,4135.9,0.6336]
[1760114024292,0.2271,4138.5,4136.5,0.6336]
[1760114024491,0.2271,4138.5,4136.1,15.14681125]
[1760114024492,0.2271,4138.5,4136.6,3.17167444]
[1760114024711,0.50615192,4139.2,4137.6,2.4168523]
[1760114024910,0.2271,4139.0,4137.7,0.02416801]
[1760114025342,0.2271,4140.5,4137.7,0.61358481]
[1760114025343,3.857,4139.5,4137.7,0.61358481]
[1760114025540,0.2271,4140.5,4137.7,0.61358481]
[1760114025541,3.086,4140.2,4137.8,0.49916743]
[1760114025748,3.086,4140.2,4138.4,2.41638838]
[1760114025749,6.635921,4139.8,4138.4,2.41638838]
[1760114026047,4.33559065,4139.8,4138.5,3.856]
[1760114026200,2.4156757,4139.7,4138.5,3.856]
[1760114026401,0.69782688,4139.7,4138.5,3.856]
[1760114026636,0.2271,4139.9,4138.5,3.856]
[1760114026841,0.2271,4139.9,4138.6,14.52416276]
[1760114027000,0.2271,4139.9,4138.6,14.5]
[1760114027602,2.41575478,4139.5,4138.6,14.5]
[1760114027837,6.408636,4139.6,4138.6,14.5]
[1760114028141,0.2271,4139.9,4138.6,14.5]
[1760114028142,2.41598415,4139.1,4138.6,14.5]
[1760114028363,4.3358177,4139.4,4137.7,0.5894168]
[1760114028364,10.26561,4139.4,4137.7,0.5894168]
[1760114028501,2.41619162,4138.8,4137.8,3.852]
[1760114028701,0.8328636,4139.5,4137.8,3.852]
[1760114028702,2.41632228,4138.6,4137.8,3.852]
[1760114028903,2.41632228,4138.6,4137.9,14.5]
[1760114029248,2.41583098,4139.4,4137.9,14.5]
[1760114029249,2.41651793,4138.2,4137.9,14.5]
[1760114029539,0.1208,4137.9,4137.6,3.85]
[1760114029900,0.1208,4137.9,4137.6,14.5]
[1760114030114,2.41489818,4141.0,4137.8,0.6336]
[1760114030317,2.013,4140.9,4137.9,0.5711]
[1760114030502,0.12,4139.2,4138.5,0.1208]
[1760114030722,0.12,4139.2,4138.6,14.52416276]
[1760114030898,0.12,4139.2,4138.6,14.5]
[1760114031344,0.12,4139.2,4138.7,0.02416217]
[1760114031846,0.2271,4140.5,4138.8,2.99112]
[1760114031847,0.12,4139.5,4138.8,2.99112]
[1760114032053,0.12,4139.5,4138.9,14.524161]
[1760114032303,1.92,4140.2,4138.9,14.5]
[1760114032459,0.12,4139.5,4138.9,14.5]
[1760114032764,1.92,4140.2,4138.9,14.5]
[1760114032967,2.41557563,4139.8,4138.8,3.845]
[1760114033165,0.1208,4138.9,4138.8,3.844]
[1760114033371,0.1208,4138.9,4138.4,14.5]
[1760114033610,0.1208,4138.5,4138.4,3.844]
[1760114033771,2.41579991,4139.5,4138.4,3.844]
[1760114033972,0.1208,4138.9,4138.4,18.344]
[1760114034273,2.44652891,4140.1,4138.6,2.41627603]
[1760114034274,0.12,4139.2,4138.6,2.41627603]
[1760114034579,0.8607,4140.5,4138.5,0.59916334]
[1760114034580,2.41497959,4140.9,4139.1,2.41593123]
[1760114034757,2.41523971,4140.4,4139.2,5.87915925]
[1760114034959,1.92,4141.1,4139.3,14.52415867]
[1760114035259,2.41533892,4140.3,4139.3,14.5]
[1760114035455,0.24153389,4140.3,4139.4,3.841]
[1760114035656,1.92,4140.8,4139.5,3.84]
[1760114035918,1.92,4141.0,4139.5,3.84]
[1760114036124,2.41556101,4139.9,4139.3,18.339]
[1760114036280,2.41559081,4139.8,4139.3,18.339]
[1760114036485,1.92,4139.8,4137.3,0.002]
[1760114036699,2.41563398,4139.7,4137.3,0.002]
[1760114036894,2.41563398,4139.7,4137.4,2.4169741]
[1760114036895,2.41578651,4139.5,4137.4,2.4169741]
[1760114037115,2.13381,4139.8,4138.0,14.5]
[1760114037116,2.41600385,4139.1,4138.0,14.5]
[1760114037424,2.62943168,4139.8,4138.2,2.41645693]
[1760114037425,2.41569349,4139.6,4138.2,2.41645693]
[1760114037724,2.41586851,4139.3,4138.1,2.41656618]
[1760114037923,2.41597934,4139.2,4138.0,1.259]
[1760114038124,2.41592822,4139.2,4138.2,14.5]
[1760114038617,0.21381,4139.8,4138.3,5.849]
[1760114039391,2.41592631,4139.2,4138.4,0.02416392]
[1760114039688,2.13381,4139.8,4138.3,5.849]
[1760114039689,0.21381,4139.8,4138.5,2.41633003]
[1760114039888,2.41568253,4139.7,4138.3,5.849]
[1760114040129,2.41568253,4139.7,4138.3,8.26544764]
[1760114040428,0.2181,4139.9,4138.2,14.5]
[1760114040600,1.92,4139.2,4138.2,14.5]
[1760114040797,2.41620516,4138.8,4138.2,14.5]
[1760114041006,0.6767789,4139.1,4138.3,0.02416451]
[1760114041208,13.21239244,4141.4,4138.2,14.5]
[1760114041408,4.174475,4141.3,4138.3,0.02416451]
[1760114041621,2.41563337,4139.8,4138.6,2.41625945]
[1760114041820,0.2181,4139.7,4138.2,14.5]
[1760114042025,2.41601934,4139.1,4138.2,14.5]
[1760114042223,1.92,4139.6,4138.3,5.844]
[1760114042386,0.2181,4139.7,4138.3,5.844]
[1760114042387,1.92,4139.4,4138.3,5.844]
[1760114042586,0.21381,4139.5,4138.3,5.844]
[1760114042818,0.2181,4139.7,4138.3,5.844]
[1760114042987,0.2181,4139.7,4138.3,8.26043982]
[1760114043183,0.2181,4139.7,4138.4,2.41634368]
[1760114043184,2.1381,4139.7,4138.4,2.41634368]
[1760114043427,2.1381,4139.7,4138.3,5.844]
[1760114043428,2.41569233,4139.6,4138.3,5.844]
[1760114043616,0.2181,4139.7,4138.3,5.844]
[1760114043804,0.43191,4139.7,4138.3,5.844]
[1760114044002,0.001,4139.7,4138.4,0.4542]
[1760114044210,0.001,4139.7,4138.7,2.4161619]
[1760114044413,0.12,4139.5,4138.8,3.9488]
[1760114044635,0.001,4139.7,4138.9,6.26824991]
[1760114044794,0.001,4139.7,4139.0,0.12]
[1760114044795,0.121,4139.7,4139.0,0.12]
[1760114044993,0.001,4139.7,4138.2,14.5]
[1760114045234,0.001,4139.7,4138.5,0.1208]
[1760114045235,0.12,4139.2,4138.5,0.1208]
[1760114045928,2.4166574,4139.7,4138.3,8.2564307]
[1760114046094,0.12,4139.5,4138.8,0.1208]
[1760114046616,0.001,4139.7,4139.0,0.12]
[1760114046617,0.121,4139.7,4139.0,0.12]
[1760114046939,0.121,4139.7,4139.1,4.2220161]
[1760114047173,0.121,4139.7,4139.1,3.825]
[1760114047436,0.121,4139.7,4139.1,5.838]
[1760114047594,0.001,4139.7,4139.6,0.12]
[1760114047799,0.001,4139.7,4139.5,3.823]
[1760114048021,0.001,4139.7,4139.5,5.6673]
[1760114048239,0.001,4139.7,4139.6,0.4542]
[1760114048425,0.001,4139.7,4139.6,5.836]
[1760114048622,0.001,4139.7,4139.6,14.5]
[1760114048845,0.001,4139.7,4139.6,18.323]
[1760114049136,0.001,4139.7,4139.6,18.322]
[1760114049506,2.36624081,4140.4,4139.6,18.322]
[1760114049707,0.001,4140.6,4139.7,2.41557777]
[1760114049908,0.001,4140.6,4139.8,0.02415575]
[1760114050298,0.001,4140.6,4139.6,18.322]
[1760114050531,2.41533371,4140.3,4139.6,14.5]
[1760114050729,2.41516725,4140.5,4139.7,3.822]
[1760114050960,0.92113673,4140.5,4139.6,14.5]
[1760114051165,2.85839691,4140.5,4139.2,2.013]
[1760114051476,2.41563543,4139.7,4139.3,3.822]
[1760114051774,0.4432,4139.6,4139.4,1.914]
[1760114052077,0.4432,4139.6,4138.3,2.41644986]
[1760114052078,0.4432,4139.6,4137.8,0.002]
[1760114052371,2.41587991,4139.3,4137.9,5.835]
[1760114052570,0.4432,4139.5,4138.0,15.0837]
[1760114052774,0.4432,4140.3,4138.1,2.4911]
[1760114052984,0.4432,4140.3,4138.2,0.4542]
[1760114053138,1.92,4140.1,4138.3,5.834]
[1760114053335,0.001,4140.6,4138.6,2.41627603]
[1760114053563,0.001,4140.6,4138.4,15.65826671]
[1760114053564,0.001,4140.6,4138.9,0.6336]
[1760114053780,0.001,4140.6,4139.3,0.6336]
[1760114053984,0.001,4140.6,4139.6,0.6336]
[1760114054274,0.001,4140.6,4139.7,2.03715633]
[1760114054434,0.001,4140.6,4140.2,14.5]
[1760114054638,0.001,4140.6,4140.3,8.24728391]
[1760114054840,0.001,4140.6,4140.4,3.818]
[1760114055250,0.001,4140.6,4140.5,14.5]
[1760114055460,2.41516923,4140.5,4139.1,0.4542]
[1760114055664,0.24161692,4140.4,4139.1,2.41596496]
[1760114055878,0.24161692,4140.4,4139.0,2.41603342]
[1760114056083,2.41528391,4140.3,4139.2,14.5]
[1760114056283,2.41528391,4140.3,4139.3,3.817]
[1760114056445,0.4449,4140.4,4139.3,3.817]
[1760114056647,2.41611284,4140.6,4139.3,4.2887]
[1760114056841,2.41611284,4140.6,4139.3,3.817]
[1760114056842,0.4449,4140.5,4139.3,3.817]
[1760114057043,2.41545092,4140.1,4139.2,14.5]
[1760114057286,0.4449,4140.5,4139.2,14.5]
[1760114057287,0.5201134,4140.3,4139.3,5.828]
[1760114057490,0.5211134,4140.6,4139.4,6.32385809]
[1760114057689,0.001,4140.6,4139.4,0.4717]
[1760114057866,0.001,4140.6,4139.5,5.827]
[1760114058040,0.12,4140.4,4139.7,0.12]
[1760114058248,0.121,4140.6,4139.9,0.12]
[1760114058541,0.12,4140.4,4139.7,0.12]
[1760114059445,0.001,4140.6,4139.8,0.02415575]
[1760114059641,0.001,4140.6,4138.6,2.41625513]
[1760114059642,0.001,4140.6,4138.6,0.4717]
[1760114059843,1.92,4140.4,4139.3,5.824]
[1760114060048,0.4449,4140.5,4138.0,22.50880279]
[1760114060049,2.41574583,4139.6,4139.2,3.811]
[1760114060265,0.2215,4139.8,4138.0,0.5837]
[1760114060547,2.41627804,4138.6,4138.0,14.5]
[1760114060747,0.65013548,4139.0,4138.0,14.5]
[1760114060993,2.41617417,4138.8,4138.1,0.02416567]
[1760114061193,0.5201134,4139.1,4138.0,14.5]
[1760114061393,1.92,4139.0,4138.0,14.5]
[1760114061691,2.57013548,4139.2,4138.0,14.5]
[1760114061871,2.57013548,4139.2,4138.1,0.02416567]
[1760114061872,0.6364312,4139.2,4138.1,0.02416567]
[1760114062223,0.5201134,4139.5,4138.1,2.41654067]
[1760114062390,2.41625542,4138.7,4138.2,3.809]
[1760114062550,2.41610089,4138.9,4138.2,3.809]
[1760114062744,0.4376,4139.0,4138.2,3.809]
[1760114063076,2.41652037,4138.2,4137.8,0.002]
[1760114063391,2.41657215,4138.1,4137.8,3.809]
[1760114063598,2.41650889,4138.3,4137.8,3.809]
[1760114063799,0.4376,4138.3,4137.8,3.809]
[1760114064300,2.41633829,4138.5,4137.8,3.809]
[1760114064301,0.81092037,4139.0,4137.8,3.809]
[1760114064487,1.92,4139.0,4137.9,0.3809]
[1760114064798,2.41614392,4138.9,4137.9,0.3809]
[1760114064958,2.41614392,4138.9,4137.8,6.22569638]
[1760114064959,1.92,4138.9,4137.8,3.809]
[1760114065258,1.92,4139.1,4137.8,3.809]
[1760114065458,2.41631402,4138.6,4137.8,3.809]
[1760114065698,2.41631402,4138.6,4137.9,3.804]
[1760114065905,0.51998443,4138.8,4137.9,3.804]
[1760114066126,2.41628456,4138.6,4137.8,0.002]
[1760114066303,1.92,4138.6,4137.8,0.002]
[1760114066473,15.63410279,4138.1,4137.8,0.002]
[1760114066672,2.41697684,4137.4,4137.3,0.002]
[1760114066907,6.40757484,4137.4,4137.3,0.002]
[1760114067211,2.41721053,4137.0,4136.9,0.002]
[1760114067411,4.98654724,4137.0,4136.9,0.002]
[1760114067579,5.29089496,4137.0,4136.9,0.002]
[1760114068175,8.30157942,4137.0,4136.9,0.002]
[1760114068521,8.30150101,4137.0,4136.9,0.002]
[1760114068675,10.89894257,4137.0,4136.9,0.002]
[1760114068873,15.50902452,4137.0,4136.9,0.002]
[1760114069113,14.96321681,4137.0,4136.9,0.002]
[1760114069289,10.25033652,4137.0,4136.9,0.002]
[1760114069487,12.88130852,4137.0,4136.9,0.002]
[1760114069692,13.52990481,4137.0,4136.9,0.002]
[1760114069890,14.16350481,4137.0,4136.9,0.002]
[1760114070100,6.44933652,4137.0,4136.9,0.002]
[1760114070309,10.24833652,4137.0,4136.9,0.002]
[1760114070481,8.537518,4136.7,4134.5,0.2195]
[1760114070684,8.537518,4136.7,4133.9,0.4717]
[1760114070685,2.41826159,4135.3,4134.1,2.014]
[1760114070913,2.4183147,4135.2,4134.2,0.35]
[1760114071178,0.6619,4135.4,4134.2,0.35]
[1760114071404,2.41826379,4135.2,4134.2,0.35]
[1760114071619,0.6619,4135.4,4134.2,0.35]
[1760114071913,2.418385,4135.0,4134.2,0.35]
[1760114072278,0.6619,4135.4,4134.2,0.35]
[1760114072511,2.72624749,4135.3,4134.2,0.35]
[1760114072715,0.4427,4136.2,4134.3,0.24728789]
[1760114072921,0.4427,4136.2,4134.3,0.2231]
[1760114073090,2.41785039,4136.0,4134.7,2.41853363]
[1760114073291,4.33779497,4136.0,4134.8,2.4184924]
[1760114073513,1.92,4136.1,4134.9,3.796]
[1760114073514,2.41791219,4135.8,4134.9,3.796]
[1760114073690,0.4405,4135.8,4134.9,3.796]
[1760114073896,0.69921803,4136.6,4135.0,0.02418379]
[1760114074096,0.4405,4136.7,4134.9,6.43145468]
[1760114074428,1.92,4136.6,4134.9,6.43145468]
[1760114074612,2.41750393,4136.5,4135.3,2.41816027]
[1760114074924,1.92,4136.6,4135.4,0.02418145]
[1760114075091,2.014,4137.2,4135.5,0.4717]
[1760114075290,0.24543,4137.1,4135.8,2.41790059]
[1760114075493,2.41697885,4137.4,4136.2,2.4176771]
[1760114075834,2.4543,4138.5,4136.3,0.4717]
[1760114075990,2.41647638,4138.3,4136.4,0.02417184]
[1760114076194,6.20944309,4138.4,4136.5,0.4717]
[1760114076407,1.10800501,4138.4,4137.1,2.41709396]
[1760114076729,1.10800501,4138.4,4136.6,0.23917]
[1760114076730,1.92,4138.3,4137.2,5.807]